fUST/lending_fUST_20250623
["ID","MTS","AMOUNT","RATE_DAILY","PERIOD"]
[367068598,1750645844795,-460.0,0.00021917,2]
[367068599,1750645844805,-271.278913,0.00021917,2]
[367068600,1750645844815,-2932.47,0.00021917,2]
[367068601,1750645844824,-460.0,0.00021917,2]
[367068602,1750645844834,-460.0,0.00021917,2]
[367068603,1750645844844,-500.0,0.00021917,2]
[367068604,1750645844853,-500.0,0.00021917,2]
[367068605,1750645844863,-500.0,0.00021917,2]
[367068606,1750645844872,-500.0,0.00021917,2]
[367068607,1750645844882,-500.0,0.00021917,2]
[367068608,1750645844892,-500.0,0.00021917,2]
[367068609,1750645844901,-500.0,0.00021917,2]
[367068610,1750645844910,-500.0,0.00021917,2]
[367068611,1750645844919,-500.0,0.00021917,2]
[367068612,1750645844928,-872.7,0.00021917,2]
[367068613,1750645844937,-500.0,0.00021917,2]
[367068614,1750645844947,-500.0,0.00021917,2]
[367068615,1750645844956,-500.0,0.00021917,2]
[367068616,1750645844965,-5065.01,0.00021917,2]
[367068617,1750645844974,-500.0,0.00021917,2]
[367068618,1750645844983,-500.0,0.00021917,2]
[367068619,1750645844992,-500.0,0.00021917,2]
[367068620,1750645845002,-274.76563454,0.00021917,2]
[367068621,1750645845011,-1067.18,0.00021917,2]
[367068622,1750645845020,-460.0,0.00021917,2]
[367068623,1750645845030,-460.0,0.00021917,2]
[367068624,1750645845039,-2387.14,0.00021917,2]
[367068625,1750645845048,-1945.48,0.00021917,2]
[367068626,1750645845058,-460.0,0.00021917,2]
[367068627,1750645845067,-460.0,0.00021917,2]
[367068628,1750645845077,-492.02,0.00021917,2]
[367068629,1750645845087,-151.0,0.00021917,2]
[367068630,1750645845096,-460.0,0.00021917,2]
[367068631,1750645845105,-460.0,0.00021917,2]
[367068632,1750645845115,-151.0,0.00021917,2]
[367068633,1750645845125,-460.0,0.00021917,2]
[367068634,1750645845134,-151.0,0.00021917,2]
[367068635,1750645845143,-7237.48,0.00021917,2]
[367068636,1750645845153,-756.04,0.00021917,2]
[367068637,1750645845163,-2180.77,0.00021917,2]
[367068638,1750645845172,-460.0,0.00021917,2]
[367068639,1750645845181,-460.0,0.00021917,2]
[367068640,1750645845191,-1835.93,0.00021917,2]
[367068641,1750645845200,-1439.69,0.00021917,2]
[367068642,1750645845212,-460.0,0.00021917,2]
[367068643,1750645845223,-200.0,0.00021917,10]
[367068644,1750645845232,-460.0,0.00021917,2]
[367068645,1750645845242,-200.0,0.00021917,10]
[367068646,1750645845252,-200.0,0.00021917,10]
[367068647,1750645845262,-200.0,0.00021917,10]
[367068648,1750645845272,-316.705257,0.00021917,10]
[367068649,1750645845282,-460.0,0.00021917,2]
[367068650,1750645845294,-451.59043018,0.00021917,2]
[367068651,1750645845305,-572.98,0.00021917,2]
[367068652,1750645845315,-460.0,0.00021917,2]
[367068653,1750645845324,-460.0,0.00021917,2]
[367068654,1750645845333,-867.24,0.00021917,2]
[367068655,1750645845343,-460.91491073,0.00021917,2]
[367068656,1750645845353,-460.0,0.00021917,2]
[367068657,1750645845364,-1518.2,0.00021917,2]
[367068658,1750645845374,-9517.27,0.00021917,2]
[367068659,1750645845383,-2827.83,0.00021917,2]
[367068660,1750645845393,-480.78,0.00021917,2]
[367068661,1750645845402,-2501.81,0.00021917,2]
[367068662,1750645845412,-460.0,0.00021917,2]
[367068663,1750645845422,-460.0,0.00021917,2]
[367068664,1750645845432,-460.0,0.00021917,2]
[367068665,1750645845441,-460.0,0.00021917,2]
[367068666,1750645845451,-481.03301258,0.00021917,2]
[367068667,1750645845460,-151.0,0.00021917,2]
[367068668,1750645845470,-465.15744517,0.00021917,2]
[367068669,1750645845480,-460.0,0.00021917,2]
[367068670,1750645845489,-460.0,0.00021917,2]
[367068671,1750645845499,-460.0,0.00021917,2]
[367068672,1750645845508,-460.0,0.00021917,2]
[367068673,1750645845518,-460.0,0.00021917,2]
[367068674,1750645845527,-710.07,0.00021917,2]
[367068675,1750645845537,-2972.5,0.00021917,2]
[367068676,1750645845547,-539.9,0.00021917,2]
[367068677,1750645845557,-865.09,0.00021917,2]
[367068678,1750645845566,-934.19,0.00021917,2]
[367068679,1750645845576,-460.0,0.00021917,2]
[367068680,1750645845586,-1351.47,0.00021917,2]
[367068681,1750645845595,-500.0,0.00021917,2]
[367068682,1750645845605,-2844.31,0.00021917,2]
[367068683,1750645845614,-460.0,0.00021917,2]
[367068684,1750645845623,-19483.45,0.00021917,2]
[367068685,1750645845633,-576.57,0.00021917,2]
[367068686,1750645845643,-460.0,0.00021917,2]
[367068687,1750645845652,-480.19,0.00021917,2]
[367068688,1750645845663,-460.0,0.00021917,2]
[367068689,1750645845672,-460.0,0.00021917,2]
[367068690,1750645845682,-201.78379069,0.00021917,2]
[367068691,1750645845692,-705.74,0.00021917,2]
[367068692,1750645845701,-497.99,0.00021917,2]
[367068693,1750645845711,-460.0,0.00021917,2]
[367068694,1750645845720,-460.0,0.00021917,2]
[367068695,1750645845730,-460.0,0.00021917,2]
[367068696,1750645845739,-3597.18,0.00021917,2]
[367068697,1750645845749,-1527.56,0.00021917,2]
[367068698,1750645845758,-462.59853645,0.00021917,2]
[367068699,1750645845768,-460.0,0.00021917,2]
[367068700,1750645845777,-835.55,0.00021917,2]
[367068701,1750645845788,-460.0,0.00021917,2]
[367068702,1750645845797,-460.0,0.00021917,2]
[367068703,1750645845807,-580.82992214,0.00021917,2]
[367068704,1750645845817,-500.0,0.00021917,2]
[367068705,1750645845827,-151.0,0.00021917,2]
[367068706,1750645845836,-606.50134723,0.00021917,2]
[367068707,1750645845845,-460.0,0.00021917,2]
[367068708,1750645845855,-428.45388935,0.00021917,2]
[367068709,1750645845864,-500.0,0.00021917,2]
[367068710,1750645845874,-151.0,0.00021917,2]
[367068711,1750645845884,-703.91,0.00021917,2]
[367068712,1750645845894,-460.0,0.00021917,2]
[367068713,1750645845904,-6424.06,0.00021917,2]
[367068714,1750645845914,-460.0,0.00021917,2]
[367068715,1750645845927,-783.59,0.00021917,2]
[367068716,1750645845936,-460.0,0.00021917,2]
[367068717,1750645845947,-1168.19,0.00021917,2]
[367068718,1750645845957,-709.32,0.00021917,2]
[367068719,1750645845967,-4954.79,0.00021917,2]
[367068720,1750645845976,-604.54,0.00021917,2]
[367068721,1750645845986,-2123.68,0.00021917,2]
[367068722,1750645845995,-460.0,0.00021917,2]
[367068723,1750645846005,-460.0,0.00021917,2]
[367068724,1750645846015,-1193.12,0.00021917,2]
[367068725,1750645846024,-460.0,0.00021917,2]
[367068726,1750645846034,-1075.23,0.00021917,2]
[367068727,1750645846044,-460.0,0.00021917,2]
[367068728,1750645846054,-1368.1,0.00021917,2]
[367068729,1750645846063,-3195.8,0.00021917,2]
[367068730,1750645846072,-1080.01,0.00021917,2]
[367068731,1750645846082,-460.0,0.00021917,2]
[367068732,1750645846092,-460.0,0.00021917,2]
[367068733,1750645846101,-460.0,0.00021917,2]
[367068735,1750645846111,-460.0,0.00021917,2]
[367068736,1750645846121,-460.0,0.00021917,2]
[367068737,1750645846131,-412.97853322,0.00021917,2]
[367068738,1750645846140,-2998.49,0.00021917,2]
[367068739,1750645846150,-5249.77,0.00021917,2]
[367068740,1750645846160,-460.0,0.00021917,2]
[367068741,1750645846169,-2205.71,0.00021917,2]
[367068742,1750645846179,-653.95,0.00021917,2]
[367068743,1750645846188,-460.0,0.00021917,2]
[367068744,1750645846198,-278.59907381,0.00021917,2]
[367068745,1750645846208,-460.0,0.00021917,2]
[367068746,1750645846224,-1763.31,0.00021917,2]
[367068747,1750645846234,-460.0,0.00021917,2]
[367068748,1750645846244,-500.0,0.00021917,2]
[367068749,1750645846254,-460.0,0.00021917,2]
[367068750,1750645846264,-460.0,0.00021917,2]
[367068751,1750645846274,-460.0,0.00021917,2]
[367068752,1750645846283,-460.0,0.00021917,2]
[367068753,1750645846293,-460.0,0.00021917,2]
[367068754,1750645846303,-460.0,0.00021917,2]
[367068755,1750645846313,-1271.72,0.00021917,2]
[367068756,1750645846323,-326.92886978,0.00021917,2]
[367068757,1750645846332,-1151.2,0.00021917,2]
[367068758,1750645846342,-745.29,0.00021917,2]
[367068759,1750645846351,-932.79,0.00021917,2]
[367068760,1750645846361,-460.0,0.00021917,2]
[367068761,1750645846370,-460.0,0.00021917,2]
[367068762,1750645846381,-460.0,0.00021917,2]
[367068763,1750645846391,-1483.16,0.00021917,2]
[367068764,1750645846400,-460.0,0.00021917,2]
[367068765,1750645846409,-460.0,0.00021917,2]
[367068766,1750645846419,-767.96,0.00021917,2]
[367068767,1750645846429,-460.0,0.00021917,2]
[367068768,1750645846438,-460.0,0.00021917,2]
[367068769,1750645846447,-460.0,0.00021917,2]
[367068770,1750645846457,-8817.71,0.00021917,2]
[367068771,1750645846467,-460.0,0.00021917,2]
[367068772,1750645846477,-460.0,0.00021917,2]
[367068773,1750645846487,-464.04,0.00021917,2]
[367068774,1750645846496,-460.0,0.00021917,2]
[367068775,1750645846506,-1989.7,0.00021917,2]
[367068776,1750645846516,-1628.78,0.00021917,2]
[367068777,1750645846525,-460.0,0.00021917,2]
[367068778,1750645846535,-460.0,0.00021917,2]
[367068779,1750645846546,-460.0,0.00021917,2]
[367068780,1750645846555,-460.0,0.00021917,2]
[367068781,1750645846566,-881.99,0.00021917,2]
[367068782,1750645846575,-826.19,0.00021917,2]
[367068783,1750645846585,-460.0,0.00021917,2]
[367068784,1750645846595,-818.97,0.00021917,2]
[367068785,1750645846605,-460.0,0.00021917,2]
[367068786,1750645846615,-6905.28,0.00021917,2]
[367068788,1750645846624,-460.0,0.00021917,2]
[367068790,1750645846633,-166.0,0.00021918,2]
[367068791,1750645846643,-155.719176,0.00021918,2]
[367068792,1750645846652,-315.580369,0.00021918,2]
[367068793,1750645846662,-315.580369,0.00021918,2]
[367068794,1750645846672,-1316.0480675,0.00021918,7]
[367068795,1750645846682,-400.0,0.00021918,7]
[367068796,1750645846691,-150.0,0.00021918,2]
[367068797,1750645846700,-174.806589,0.00021918,7]
[367068798,1750645846710,-151.0,0.00021944,2]
[367068799,1750645846720,-151.0,0.00021944,2]
[367068800,1750645846730,-151.0,0.00021944,2]
[367068801,1750645846740,-500.0,0.00021944,2]
[367068802,1750645846750,-500.0,0.00021944,2]
[367068803,1750645846760,-500.0,0.00021944,2]
[367068804,1750645846770,-151.0,0.00021944,2]
[367068805,1750645846780,-151.0,0.00021944,2]
[367068806,1750645846790,-151.0,0.00021944,2]
[367068807,1750645846800,-1328.0,0.00021944,2]
[367068808,1750645846809,-151.0,0.00021944,2]
[367068809,1750645846819,-151.0,0.00021944,2]
[367068810,1750645846829,-500.0,0.00021944,2]
[367068811,1750645846839,-500.0,0.00021944,2]
[367068812,1750645846849,-500.0,0.00021944,2]
[367068813,1750645846859,-500.0,0.00021944,2]
[367068814,1750645846869,-500.0,0.00021944,2]
[367068815,1750645846879,-151.0,0.00021944,2]
[367068816,1750645846889,-151.0,0.00021944,2]
[367068817,1750645846899,-500.0,0.00021944,2]
[367068818,1750645846909,-151.0,0.00021944,2]
[367068819,1750645846919,-151.0,0.00021944,2]
[367068820,1750645846929,-151.0,0.00021944,2]
[367068821,1750645846939,-2696.0,0.00021944,2]
[367068822,1750645846949,-151.14697884,0.00021944,2]
[367068823,1750645846959,-500.0,0.00021944,2]
[367068824,1750645846969,-500.0,0.00021944,2]
[367068825,1750645846979,-500.0,0.00021944,2]
[367068826,1750645846989,-151.0,0.00021944,2]
[367068827,1750645846999,-165.31130893,0.00021944,2]
[367068828,1750645847010,-151.0,0.00021944,2]
[367068829,1750645847020,-500.0,0.00021944,2]
[367068830,1750645847030,-500.0,0.00021944,2]
[367068831,1750645847044,-500.0,0.00021944,2]
[367068832,1750645847055,-500.0,0.00021944,2]
[367068833,1750645847065,-500.0,0.00021944,2]
[367068834,1750645847075,-13402.78846344,0.00021969,2]
[367068835,1750645847085,-151.0,0.00021969,7]
[367068836,1750645847095,-151.0,0.00021969,7]
[367068837,1750645847104,-296.1687221,0.00021972,2]
[367068838,1750645847114,-151.0,0.00021972,2]
[367068839,1750645847124,-281.64234006,0.00021972,2]
[367068840,1750645847134,-500.0,0.00021972,2]
[367068841,1750645847144,-500.0,0.00021972,2]
[367068842,1750645847154,-277.61852583,0.00021972,2]
[367068843,1750645847163,-151.0,0.00021972,2]
[367068844,1750645847173,-283.01552149,0.00021972,2]
[367068845,1750645847183,-151.0,0.00021972,2]
[367068846,1750645847192,-1328.0,0.00021972,2]
[367068847,1750645847202,-151.0,0.00021972,2]
[367068848,1750645847216,-198.0,0.00021972,2]
[367068849,1750645847226,-500.0,0.00021972,2]
[367068850,1750645847235,-500.0,0.00021972,2]
[367068851,1750645847245,-500.0,0.00021972,2]
[367068852,1750645847256,-500.0,0.00021972,2]
[367068853,1750645847266,-500.0,0.00021972,2]
[367068854,1750645847276,-292.00950483,0.00021972,2]
[367068855,1750645847289,-151.0,0.00021972,2]
[367068856,1750645847299,-500.0,0.00021972,2]
[367068857,1750645847309,-220.14551113,0.00021972,2]
[367068858,1750645847319,-151.0,0.00021972,2]
[367068859,1750645847328,-151.0,0.00021972,2]
[367068860,1750645847339,-2696.0,0.00021972,2]
[367068861,1750645847350,-500.0,0.00021972,2]
[367068862,1750645847360,-500.0,0.00021972,2]
[367068863,1750645847370,-500.0,0.00021972,2]
[367068864,1750645847380,-151.0,0.00021972,2]
[367068865,1750645847390,-151.0,0.00021972,2]
[367068866,1750645847402,-500.0,0.00021972,2]
[367068867,1750645847412,-254.49574872,0.00021972,2]
[367068868,1750645847422,-500.0,0.00021972,2]
[367068869,1750645847432,-500.0,0.00021972,2]
[367068870,1750645847442,-500.0,0.00021972,2]
[367068871,1750645847452,-513.10036916,0.00021973,2]
[367068872,1750645847462,-500.0,0.00021973,2]
[367068873,1750645847473,-500.0,0.00021973,2]
[367068874,1750645847484,-500.0,0.00021973,2]
[367068875,1750645847495,-500.0,0.00021973,2]
[367068876,1750645847506,-162.18022338,0.00021973,2]
[367068877,1750645847516,-500.0,0.00021973,2]
[367068878,1750645847527,-500.0,0.00021973,2]
[367068879,1750645847537,-203.77211291,0.00021973,2]
[367068880,1750645847547,-623.29573898,0.00021973,2]
[367068881,1750645847556,-630.43432541,0.00021973,2]
[367068882,1750645847566,-500.0,0.00021973,2]
[367068883,1750645847576,-500.0,0.00021973,2]
[367068884,1750645847587,-500.0,0.00021973,2]
[367068885,1750645847596,-500.0,0.00021973,2]
[367068886,1750645847608,-500.0,0.00021973,2]
[367068887,1750645847617,-618.77154778,0.00021973,2]
[367068888,1750645847628,-501.81369713,0.00021973,2]
[367068889,1750645847637,-500.0,0.00021973,2]
[367068890,1750645847648,-500.0,0.00021973,2]
[367068891,1750645847659,-500.0,0.00021973,2]
[367068892,1750645847669,-500.0,0.00021973,2]
[367068893,1750645847679,-500.0,0.00021973,2]
[367068894,1750645847689,-500.0,0.00021973,2]
[367068895,1750645847698,-500.0,0.00021973,2]
[367068896,1750645847708,-500.0,0.00021973,2]
[367068897,1750645847717,-500.0,0.00021973,2]
[367068898,1750645847727,-500.0,0.00021973,2]
[367068899,1750645847736,-500.0,0.00021973,2]
[367068900,1750645847746,-500.0,0.00021973,2]
[367068901,1750645847755,-500.70918547,0.00021973,2]
[367068902,1750645847764,-210.00680306,0.00021973,2]
[367068903,1750645847774,-500.0,0.00021973,2]
[367068904,1750645847784,-500.0,0.00021973,2]
[367068905,1750645847793,-500.0,0.00021973,2]
[367068906,1750645847803,-500.0,0.00021973,2]
[367068907,1750645847813,-344.8429154,0.00021973,2]
[367068908,1750645847823,-500.0,0.00021973,2]
[367068909,1750645847832,-500.0,0.00021973,2]
[367068910,1750645847842,-504.37464462,0.00021973,2]
[367068911,1750645847851,-500.0,0.00021973,2]
[367068912,1750645847860,-500.3803995,0.00021973,2]
[367068913,1750645847871,-500.0,0.00021973,2]
[367068914,1750645847880,-500.0,0.00021973,2]
[367068915,1750645847890,-501.3412118,0.00021973,2]
[367068916,1750645847899,-500.0,0.00021973,2]
[367068917,1750645847909,-500.0,0.00021973,2]
[367068918,1750645847919,-500.0,0.00021973,2]
[367068919,1750645847928,-500.0,0.00021973,2]
[367068920,1750645847937,-500.0,0.00021973,2]
[367068921,1750645847948,-500.0,0.00021973,2]
[367068922,1750645847957,-500.0,0.00021973,2]
[367068923,1750645847967,-512.34243807,0.00021973,2]
[367068924,1750645847977,-500.0,0.00021973,2]
[367068925,1750645847986,-500.0,0.00021973,2]
[367068926,1750645847996,-500.0,0.00021973,2]
[367068927,1750645848005,-500.0,0.00021973,2]
[367068928,1750645848015,-151.0,0.00021973,7]
[367068929,1750645848025,-151.953828,0.00021973,7]
[367068930,1750645848035,-151.0,0.00021973,7]
[367068931,1750645848045,-282.505554,0.00021973,7]
[367068932,1750645848055,-153.071768,0.00021973,7]
[367068933,1750645848065,-315.580369,0.00021973,7]
[367068934,1750645848075,-315.580369,0.00021973,7]
[367068935,1750645848085,-151.0,0.0002199,2]
[367068936,1750645848095,-4489.53178788,0.00021992,2]
[367068937,1750645848105,-151.0,0.00021999,2]
[367068938,1750645848288,-512.36969052,0.00021999,2]
[367068939,1750645848299,-326.88439245,0.00021999,2]
[367068940,1750645848308,-293.690989,0.00021999,2]
[367068941,1750645848318,-164.70290414,0.00021999,2]
[367068942,1750645848327,-1328.0,0.00021999,2]
[367068943,1750645848337,-259.55586604,0.00021999,2]
[367068944,1750645848346,-500.0,0.00021999,2]
[367068945,1750645848355,-500.0,0.00021999,2]
[367068946,1750645848364,-500.0,0.00021999,2]
[367068947,1750645848374,-500.0,0.00021999,2]
[367068948,1750645848383,-500.0,0.00021999,2]
[367068949,1750645848392,-158.02093256,0.00021999,2]
[367068950,1750645848403,-500.0,0.00021999,2]
[367068951,1750645848412,-192.40064714,0.00021999,2]
[367068952,1750645848421,-151.0,0.00021999,2]
[367068953,1750645848431,-2696.0,0.00021999,2]
[367068954,1750645848440,-500.0,0.00021999,2]
[367068955,1750645848449,-500.0,0.00021999,2]
[367068956,1750645848459,-500.0,0.00021999,2]
[367068957,1750645848469,-299.68033167,0.00021999,2]
[367068958,1750645848478,-151.0,0.00021999,2]
[367068959,1750645848489,-500.0,0.00021999,2]
[367068960,1750645848499,-500.0,0.00021999,2]
[367068961,1750645848509,-500.0,0.00021999,2]
[367068962,1750645848518,-591.12848526,0.00021999,2]
[367068963,1750645848528,-16054.92324598,0.00022,2]
[367068964,1750645848538,-11302.43168048,0.00022,2]
[367068965,1750645848548,-386.53261844,0.00022,2]
[367068966,1750645848557,-161.26034154,0.00022,2]
[367068967,1750645848567,-151.0,0.00022,7]
[367068968,1750645848576,-151.0,0.00022,7]
[367068969,1750645848585,-151.0,0.00022,7]
[367068970,1750645848594,-868.531415,0.00022,2]
[367068971,1750645848604,-868.531415,0.00022,2]
[367068972,1750645848614,-170.260479,0.00022,7]
[367068973,1750645848623,-170.260479,0.00022,7]
[367068974,1750645848633,-151.0,0.00022,7]
[367068975,1750645848642,-3416.84,0.00022,7]
[367068976,1750645848653,-151.0,0.00022,7]
[367068977,1750645848662,-228.156087,0.00022,7]
[367068978,1750645848673,-228.156087,0.00022,7]
[367068979,1750645848682,-154.553503,0.00022,7]
[367068980,1750645848692,-198.074778,0.00022,7]
[367068981,1750645848701,-198.074778,0.00022,7]
[367068982,1750645848711,-151.703439,0.00022,7]
[367068983,1750645848720,-151.0,0.00022,7]
[367068984,1750645848729,-152.059661,0.00022,7]
[367068985,1750645848739,-4114.827426,0.00022,7]
[367068986,1750645848749,-2184.9013861,0.00022,7]
[367068987,1750645849109,-233.02991437,0.00022,7]
[367068988,1750645849129,-1696.89612553,0.00022,7]
[367068989,1750645849138,-258.356124,0.00022,7]
[367068990,1750645849148,-151.0,0.00022,7]
[367068991,1750645849158,-152.609324,0.00022,7]
[367068992,1750645849169,-151.0,0.00022,7]
[367068993,1750645849179,-353.9861694,0.00022,2]
[367068994,1750645849189,-159.0806219,0.00022,2]
[367068995,1750645849198,-574.1028085,0.00022,2]
[367068996,1750645849211,-151.0,0.00022,7]
[367068997,1750645849221,-151.0,0.00022,7]
[367068998,1750645849231,-151.0,0.00022,7]
[367068999,1750645849240,-955.741248,0.00022,7]
[367069000,1750645849250,-151.0,0.00022,7]
[367069001,1750645849261,-955.741248,0.00022,7]
[367069002,1750645849271,-151.0,0.00022,7]
[367069003,1750645849281,-151.0,0.00022,7]
[367069004,1750645849292,-3306.933896,0.00022,7]
[367069005,1750645849303,-151.0,0.00022,7]
[367069006,1750645849312,-3306.933896,0.00022,7]
[367069007,1750645849322,-151.0,0.00022,7]
[367069008,1750645849331,-151.0,0.00022,7]
[367069009,1750645849341,-151.0,0.00022,7]
[367069010,1750645849351,-160.0,0.00022,7]
[367069011,1750645849360,-151.0,0.00022,7]
[367069012,1750645849370,-151.0,0.00022,7]
[367069013,1750645849379,-846.53928378,0.00022,7]
[367069014,1750645849388,-12553.69357174,0.00022,7]
[367069015,1750645849398,-524.09497732,0.00022,7]
[367069016,1750645849407,-167.0,0.00022,2]
[367069017,1750645849417,-151.0,0.00022,7]
[367069018,1750645849426,-151.0,0.00022,7]
[367069019,1750645849435,-252.796361,0.00022,7]
[367069020,1750645849444,-252.796361,0.00022,7]
[367069021,1750645849453,-271.278913,0.00022,7]
[367069022,1750645849462,-27997.00880307,0.00022,2]
[367069023,1750645849471,-271.278913,0.00022,7]
[367069024,1750645849481,-206209.98422531,0.00022,4]
[367069025,1750645849491,-97855.4625396,0.00022,7]
[367069026,1750645849501,-151.0,0.00022,7]
[367069027,1750645849511,-213.63163053,0.00022,7]
[367069028,1750645849521,-300.0,0.00022002,2]
[367069029,1750645849531,-182.87944109,0.00022027,2]
[367069030,1750645849540,-1328.0,0.00022027,2]
[367069031,1750645849550,-500.0,0.00022027,2]
[367069032,1750645849559,-500.0,0.00022027,2]
[367069033,1750645849569,-500.0,0.00022027,2]
[367069034,1750645849579,-500.0,0.00022027,2]
[367069035,1750645849590,-500.0,0.00022027,2]
[367069036,1750645849600,-500.0,0.00022027,2]
[367069037,1750645849609,-210.98953009,0.00022027,2]
[367069038,1750645849618,-2696.0,0.00022027,2]
[367069039,1750645849628,-500.0,0.00022027,2]
[367069040,1750645849637,-500.0,0.00022027,2]
[367069041,1750645849646,-500.0,0.00022027,2]
[367069042,1750645849655,-151.0,0.00022027,2]
[367069043,1750645849665,-500.0,0.00022027,2]
[367069044,1750645849674,-500.0,0.00022027,2]
[367069045,1750645849684,-151.84800201,0.00022027,2]
[367069046,1750645849693,-151.0,0.00022027,7]
[367069047,1750645849703,-1328.0,0.00022054,2]
[367069048,1750645849713,-320.06060616,0.00022054,2]
[367069049,1750645849723,-500.0,0.00022054,2]
[367069050,1750645849732,-500.0,0.00022054,2]
[367069051,1750645849742,-500.0,0.00022054,2]
[367069052,1750645849751,-500.0,0.00022054,2]
[367069053,1750645849760,-500.0,0.00022054,2]
[367069054,1750645849769,-2696.0,0.00022054,2]
[367069055,1750645849778,-500.0,0.00022054,2]
[367069056,1750645849788,-628.04006227,0.00022054,2]
[367069057,1750645849797,-500.0,0.00022054,2]
[367069058,1750645849807,-184.72522646,0.00022054,2]
[367069059,1750645849816,-500.0,0.00022054,2]
[367069060,1750645849826,-500.0,0.00022054,2]
[367069061,1750645849835,-151.0,0.00022054,7]
[367069062,1750645849845,-269.761555,0.00022054,7]
[367069063,1750645849856,-151.0,0.00022054,7]
[367069064,1750645849866,-315.580369,0.00022054,7]
[367069065,1750645849874,-315.580369,0.00022054,7]
[367069066,1750645849884,-2618.79853803,0.00022072,6]
[367069067,1750645849893,-151.0,0.00022081,7]
[367069068,1750645849903,-151.0,0.00022081,7]
[367069069,1750645849913,-151.0,0.00022081,7]
[367069070,1750645849922,-151.0,0.00022081,7]
[367069071,1750645849932,-1328.0,0.00022081,2]
[367069072,1750645849942,-484.57607787,0.00022081,2]
[367069073,1750645849951,-500.0,0.00022081,2]
[367069074,1750645849965,-500.0,0.00022081,2]
[367069075,1750645849981,-500.0,0.00022081,2]
[367069076,1750645849991,-400.31898659,0.00022081,2]
[367069077,1750645850000,-2696.0,0.00022081,2]
[367069078,1750645850009,-500.0,0.00022081,2]
[367069079,1750645850020,-500.0,0.00022081,2]
[367069080,1750645850029,-500.0,0.00022081,2]
[367069081,1750645850039,-500.0,0.00022081,2]
[367069082,1750645850049,-160.0,0.00022091,3]
[367069083,1750645850059,-846.53928378,0.00022091,3]
[367069084,1750645850069,-12553.69357174,0.00022091,3]
[367069085,1750645850079,-213.63163053,0.00022091,3]
[367069086,1750645850089,-151.0,0.00022091,7]
[367069087,1750645850098,-151.0,0.00022091,7]
[367069088,1750645850108,-151.0,0.00022091,7]
[367069089,1750645850119,-151.0,0.00022091,7]
[367069090,1750645850128,-611.529386,0.00022091,7]
[367069091,1750645850137,-611.529386,0.00022091,7]
[367069092,1750645850147,-151.0,0.00022091,7]
[367069093,1750645850157,-462.111402,0.00022091,7]
[367069094,1750645850166,-462.111402,0.00022091,7]
[367069095,1750645850176,-160.0,0.000221,3]
[367069096,1750645850185,-151.0,0.000221,7]
[367069097,1750645850195,-10266.54,0.000221,7]
[367069098,1750645850205,-151.0,0.000221,9]
[367069099,1750645850218,-151.0,0.00022108,7]
[367069100,1750645850228,-151.0,0.00022108,7]